fUSD/lending_fUSD_20250606
["ID","MTS","AMOUNT","RATE_DAILY","PERIOD"]
[364650267,1749179449781,-487.23862546,0.00030164,7]
[364650268,1749179449792,-1065.74,0.00030164,7]
[364650269,1749179450199,-3205.99,0.00030164,7]
[364650270,1749179450232,-480.0,0.00030164,7]
[364650271,1749179450255,-480.0,0.00030164,7]
[364650272,1749179450268,-545.1,0.00030164,7]
[364650273,1749179450278,-480.0,0.00030164,7]
[364650274,1749179450288,-480.0,0.00030164,7]
[364650275,1749179450297,-480.0,0.00030164,7]
[364650276,1749179450306,-480.0,0.00030164,7]
[364650277,1749179450316,-480.0,0.00030164,7]
[364650278,1749179450326,-1383.22,0.00030164,7]
[364650279,1749179450336,-480.0,0.00030164,7]
[364650280,1749179450347,-857.88,0.00030164,7]
[364650281,1749179450356,-480.0,0.00030164,7]
[364650282,1749179450366,-591.53,0.00030164,7]
[364650283,1749179450376,-4951.5,0.00030164,7]
[364650284,1749179450386,-480.0,0.00030164,7]
[364650285,1749179450395,-480.0,0.00030164,7]
[364650286,1749179450405,-867.79,0.00030164,7]
[364650287,1749179450414,-408.69859284,0.00030164,7]
[364650288,1749179450424,-503.73,0.00030164,7]
[364650289,1749179450433,-508.32,0.00030164,7]
[364650290,1749179450442,-480.0,0.00030164,7]
[364650291,1749179450451,-622.5,0.00030164,7]
[364650292,1749179450460,-4880.2,0.00030164,7]
[364650293,1749179450470,-480.0,0.00030164,7]
[364650294,1749179450479,-1485.96,0.00030164,7]
[364650295,1749179450489,-622.5,0.00030164,7]
[364650296,1749179450498,-492.04894818,0.00030164,7]
[364650297,1749179450508,-622.5,0.00030164,7]
[364650298,1749179450519,-622.5,0.00030164,7]
[364650299,1749179450530,-480.0,0.00030164,7]
[364650300,1749179450539,-480.0,0.00030164,3]
[364650301,1749179450549,-480.0,0.00030164,7]
[364650302,1749179450559,-480.0,0.00030164,7]
[364650303,1749179450569,-1760.26,0.00030164,7]
[364650304,1749179450579,-480.0,0.00030164,7]
[364650305,1749179450590,-480.0,0.00030164,7]
[364650306,1749179450600,-480.0,0.00030164,7]
[364650307,1749179450610,-480.0,0.00030164,7]
[364650308,1749179450619,-962.76,0.00030164,7]
[364650309,1749179450628,-541.23,0.00030164,7]
[364650310,1749179450638,-480.0,0.00030164,7]
[364650311,1749179450647,-480.0,0.00030164,7]
[364650312,1749179450656,-748.7,0.00030164,7]
[364650313,1749179450665,-480.0,0.00030164,7]
[364650314,1749179450675,-2055.17,0.00030164,7]
[364650315,1749179450684,-1441.29,0.00030164,7]
[364650316,1749179450693,-1423.13,0.00030164,7]
[364650317,1749179450703,-456.52617371,0.00030164,7]
[364650318,1749179450714,-480.0,0.00030164,7]
[364650319,1749179450723,-539.99,0.00030164,7]
[364650320,1749179450939,-600.0,0.00030164,2]
[364650321,1749179450949,-2428.18,0.00030164,7]
[364650322,1749179450959,-480.0,0.00030164,7]
[364650323,1749179450967,-489.44004139,0.00030164,7]
[364650324,1749179450976,-19983.06,0.00030164,7]
[364650325,1749179450987,-480.0,0.00030164,7]
[364650326,1749179450996,-480.0,0.00030164,7]
[364650327,1749179451006,-2032.35,0.00030164,7]
[364650328,1749179451015,-571.49,0.00030164,7]
[364650329,1749179451024,-1225.73,0.00030164,7]
[364650330,1749179451033,-480.0,0.00030164,7]
[364650331,1749179451043,-480.0,0.00030164,7]
[364650332,1749179451052,-480.0,0.00030164,7]
[364650333,1749179451062,-426.01195317,0.00030164,7]
[364650334,1749179451071,-1063.86,0.00030164,7]
[364650335,1749179451081,-981.11,0.00030164,7]
[364650336,1749179451091,-864.79,0.00030164,7]
[364650337,1749179451101,-480.0,0.00030164,7]
[364650338,1749179451110,-480.0,0.00030164,7]
[364650339,1749179451120,-724.86,0.00030164,7]
[364650340,1749179451130,-666.49,0.00030164,7]
[364650341,1749179451139,-1545.0,0.00030164,7]
[364650342,1749179451149,-495.83485887,0.00030164,7]
[364650343,1749179451158,-2087.45,0.00030164,7]
[364650344,1749179451168,-480.0,0.00030164,7]
[364650345,1749179451177,-480.0,0.00030164,7]
[364650346,1749179451186,-3212.79,0.00030164,7]
[364650347,1749179451196,-480.0,0.00030164,7]
[364650348,1749179451205,-677.39,0.00030164,7]
[364650349,1749179451215,-904.91,0.00030164,7]
[364650350,1749179451224,-2075.76,0.00030164,7]
[364650351,1749179451233,-487.35842075,0.00030164,7]
[364650352,1749179451243,-1340.87,0.00030164,7]
[364650353,1749179451252,-500.99120206,0.00030164,7]
[364650354,1749179451262,-480.0,0.00030164,2]
[364650355,1749179451271,-480.0,0.00030164,7]
[364650356,1749179451281,-604.87,0.00030164,7]
[364650357,1749179451291,-4334.01,0.00030164,7]
[364650358,1749179451300,-1113.91,0.00030164,7]
[364650359,1749179451310,-282.97661412,0.00030164,7]
[364650360,1749179451320,-480.0,0.00030164,7]
[364650361,1749179451330,-480.0,0.00030164,2]
[364650362,1749179451339,-471.86078606,0.00030164,7]
[364650363,1749179451348,-17179.4,0.00030164,7]
[364650364,1749179451358,-480.0,0.00030164,7]
[364650365,1749179451367,-1279.91,0.00030164,7]
[364650366,1749179451376,-919.54,0.00030164,7]
[364650367,1749179451385,-726.44,0.00030164,7]
[364650368,1749179451395,-480.0,0.00030164,7]
[364650369,1749179451404,-5739.64,0.00030164,7]
[364650370,1749179451413,-3563.0,0.00030164,7]
[364650371,1749179451423,-788.31,0.00030164,7]
[364650372,1749179451432,-846.94,0.00030164,7]
[364650373,1749179451441,-1118.77,0.00030164,7]
[364650374,1749179451450,-480.0,0.00030164,7]
[364650375,1749179451459,-1007.45,0.00030164,2]
[364650376,1749179451468,-497.34,0.00030164,7]
[364650377,1749179451477,-480.0,0.00030164,7]
[364650378,1749179451486,-480.0,0.00030164,7]
[364650379,1749179451495,-480.0,0.00030164,7]
[364650380,1749179451504,-480.0,0.00030164,7]
[364650381,1749179451514,-883.63,0.00030164,7]
[364650382,1749179451531,-480.0,0.00030164,7]
[364650383,1749179451540,-480.0,0.00030164,7]
[364650384,1749179451549,-480.0,0.00030164,7]
[364650385,1749179451558,-1563.56,0.00030164,7]
[364650386,1749179451569,-700.0,0.00030164,7]
[364650387,1749179451578,-500.0,0.00030173,5]
[364650388,1749179451588,-500.0,0.00030173,5]
[364650389,1749179451599,-507.5360589,0.00030173,5]
[364650390,1749179451608,-500.0,0.00030173,5]
[364650391,1749179451618,-151.0,0.00030173,7]
[364650392,1749179451628,-151.0,0.00030173,7]
[364650393,1749179451637,-256.354766,0.00030173,7]
[364650394,1749179451647,-256.354766,0.00030173,7]
[364650395,1749179451656,-151.0,0.00030173,7]
[364650396,1749179451666,-248.721647,0.00030173,7]
[364650397,1749179451676,-248.721647,0.00030173,7]
[364650398,1749179451685,-151.0,0.00030173,7]
[364650399,1749179451694,-151.0,0.00030173,7]
[364650400,1749179451704,-151.0,0.00030173,7]
[364650401,1749179451713,-151.0,0.00030173,7]
[364650402,1749179451722,-154.414541,0.00030173,7]
[364650403,1749179451731,-158.941138,0.00030173,7]
[364650404,1749179451741,-158.941138,0.00030173,7]
[364650405,1749179451750,-1942.90814018,0.00030191,2]
[364650406,1749179451759,-7511.99367328,0.00030192,2]
[364650407,1749179451768,-1740.35,0.000302,2]
[364650408,1749179451778,-1403.766835,0.00030202,7]
[364650409,1749179451787,-1403.766835,0.00030202,7]
[364650410,1749179451796,-3960.532,0.00030202,25]
[364650411,1749179451805,-163.412,0.00030202,25]
[364650412,1749179451815,-189.13475445,0.00030208,2]
[364650413,1749179451825,-207.64384522,0.0003021,2]
[364650414,1749179451834,-307.38,0.00030219,2]
[364650415,1749179451843,-1942.90814018,0.00030259,2]
[364650416,1749179451853,-203.67037669,0.00030275,22]
[364650417,1749179451862,-207.64384522,0.00030283,2]
[364650418,1749179451871,-14310.883301,0.00030288,2]
[364650419,1749179451881,-7511.99367328,0.00030288,2]
[364650420,1749179451890,-7511.99367328,0.00030294,2]
[364650421,1749179451899,-12980.48700343,0.00030297,2]
[364650422,1749179458521,969.0,0.0003561,120]
[364650423,1749179504450,1500.0,0.00034,120]
[364650424,1749179518372,1065.0,0.0003561,120]
[364650425,1749179525319,2000.0,0.00035,120]
[364650426,1749179547732,3000.0,0.00035,120]
[364650427,1749179548236,171.5,0.00013699,2]
[364650430,1749179567765,1617.0,0.00035,120]
[364650431,1749179578376,686.70234996,0.0003561,120]
[364650432,1749179672176,172.06551014,0.000356,120]
[364650434,1749179700877,1098.0,0.00035616,120]
[364650435,1749179720055,390.0,0.0003561,120]
[364650438,1749179853047,6452.0,0.00035616,120]
[364650439,1749180101179,1000.0,0.0003561,120]
[364650440,1749180249507,12545.0,0.00035616,120]
[364650452,1749180478496,501.0,0.0003561,120]
[364650454,1749180527480,168.16,0.00013699,2]
[364650455,1749180538695,527.0,0.0003561,120]
[364650463,1749180595189,1000.0,0.00035616,120]
[364650467,1749180609784,1000.0,0.00035,120]
[364650468,1749180624432,1000.0,0.00035,120]
[364650478,1749180631881,-1307.09081932,0.000199,3]
[364650480,1749180631895,-1044.25389599,0.000199,3]
[364650482,1749180631907,-1200.0,0.00019999,2]
[364650484,1749180631920,-13413.99829259,0.0002,2]
[364650487,1749180631934,-41375.64821345,0.0002,2]
[364650490,1749180631957,-503.51479076,0.0002,2]
[364650633,1749180637474,-2834.92244878,0.0002,2]
[364650634,1749180637486,-1006.6886836,0.0002,2]
[364650635,1749180637634,-401.59880889,0.0002,2]
[364650636,1749180637644,-5000.00165368,0.00024,5]
[364650637,1749180637655,-276.69598028,0.000244,11]
[364650638,1749180637664,-276.6959801,0.00024417,11]
[364650639,1749180637674,-500.0,0.00024932,2]
[364650640,1749180637684,-151.0,0.00024932,2]
[364650641,1749180637694,-276.6959801,0.00024934,12]
[364650642,1749180637704,-180.52,0.00025423,2]
[364650643,1749180637715,-276.6959801,0.00025452,13]
[364650644,1749180637725,-156.587,0.0002548,2]
[364650645,1749180637734,-276.6959801,0.00025969,14]
[364650646,1749180637744,-162.380719,0.00026028,2]
[364650647,1749180637754,-256.69187694,0.00026347,2]
[364650648,1749180637764,-276.6959801,0.00026486,15]
[364650650,1749180637773,-297.31222579,0.00026576,2]
[364650652,1749180637782,-276.6959801,0.00027003,16]
[364650654,1749180637792,-276.6959801,0.00027521,17]
[364650656,1749180637802,-1728.79,0.00027572,2]
[364650658,1749180637812,-710.8,0.00027612,2]
[364650660,1749180637823,-152.0,0.00027668,3]
[364650662,1749180637834,-398.11,0.00027951,2]
[364650664,1749180637844,-1413.25,0.00027976,2]
[364650666,1749180637854,-276.6959801,0.00028038,18]
[364650668,1749180637864,-294.56024642,0.00028064,2]
[364650670,1749180637875,-250.0,0.00028077,2]
[364650673,1749180637885,-300.0,0.00028137,2]
[364650675,1749180637895,-23900.0,0.00028138,2]
[364650677,1749180637905,-200.29795325,0.00028188,14]
[364650679,1749180637915,-500.0,0.00028189,2]
[364650682,1749180637928,-500.0,0.00028189,2]
[364650685,1749180637938,-500.0,0.00028189,2]
[364650688,1749180637948,-500.0,0.00028189,2]
[364650691,1749180637958,-500.0,0.00028189,2]
[364650694,1749180637969,-500.0,0.00028189,2]
[364650697,1749180637980,-500.0,0.00028189,2]
[364650700,1749180637989,-500.0,0.00028189,2]
[364650703,1749180638000,-500.0,0.00028189,2]
[364650706,1749180638010,-500.0,0.00028189,2]
[364650709,1749180638019,-500.0,0.00028189,2]
[364650711,1749180638030,-500.0,0.00028189,2]
[364650713,1749180638039,-500.0,0.00028189,2]
[364650715,1749180638051,-500.0,0.00028189,2]
[364650718,1749180638062,-500.0,0.00028189,2]
[364650720,1749180638073,-500.0,0.00028189,2]
[364650722,1749180638083,-500.0,0.00028189,2]
[364650724,1749180638094,-500.0,0.00028189,2]
[364650726,1749180638103,-500.0,0.00028189,2]
[364650728,1749180638113,-159.73351289,0.00028189,2]
[364650730,1749180638123,-500.0,0.00028189,2]
[364650732,1749180638133,-500.0,0.00028189,2]
[364650734,1749180638143,-500.0,0.00028189,2]
[364650736,1749180638153,-500.0,0.00028189,2]
[364650738,1749180638163,-500.0,0.00028189,2]
[364650740,1749180638172,-517.97887649,0.00028189,2]
[364650742,1749180638182,-500.0,0.00028189,2]
[364650744,1749180638191,-500.0,0.00028189,2]
[364650746,1749180638201,-500.0,0.00028189,2]
[364650771,1749180638398,-500.0,0.00028189,2]
[364650776,1749180638466,-500.0,0.00028189,2]
[364650778,1749180638476,-500.0,0.00028189,2]
[364650780,1749180638486,-500.0,0.00028189,2]
[364650782,1749180638495,-500.0,0.00028189,2]
[364650784,1749180638505,-489.25230331,0.00028189,2]
[364650786,1749180638515,-500.0,0.00028189,2]
[364650788,1749180638524,-500.0,0.00028189,2]
[364650790,1749180638534,-4074.14,0.0002819,2]
[364650792,1749180638543,-206.0,0.00028208,2]
[364650794,1749180638553,-1957.856,0.0002835,2]
[364650796,1749180638563,-207.4,0.0002835,2]
[364650798,1749180638573,-3780.46,0.00028367,2]
[364650800,1749180638583,-150.0,0.00028367,2]
[364650802,1749180638592,-2030.296672,0.00028405,2]
[364650804,1749180638601,-2105.41764886,0.0002846,2]
[364650806,1749180638612,-2183.31810187,0.00028515,2]
[364650807,1749180638621,-7547.80641516,0.00028519,2]
[364650808,1749180638632,-1000.0,0.00028529,2]
[364650809,1749180638641,-38733.28,0.00028529,10]
[364650810,1749180638650,-500.0,0.00028545,3]
[364650811,1749180638660,-150.0,0.00028547,7]
[364650812,1749180638669,-276.6959801,0.00028555,19]
[364650813,1749180638678,-167.87,0.00028564,2]
[364650814,1749180638687,-1584.2355246,0.00028567,2]
[364650815,1749180638697,-2264.10087164,0.0002857,2]
[364650816,1749180638706,-2347.87260389,0.00028625,2]
[364650819,1749180638716,-1020.66,0.00028651,30]
[364650820,1749180638725,-2434.74389024,0.0002868,2]
[364650822,1749180638734,-247.34,0.00028706,2]
[364650825,1749180638744,-2524.82941417,0.00028735,2]
[364650827,1749180638754,-2618.2481025,0.0002879,2]
[364650829,1749180638763,-2715.12328229,0.00028845,2]
[364650831,1749180638773,-151.0,0.00028871,2]
[364650833,1749180638782,-151.0,0.00028871,2]
[364650834,1749180638791,-1000.0,0.00028871,2]
[364650836,1749180638801,-500.0,0.00028871,2]
[364650838,1749180638810,-500.0,0.00028871,2]
[364650839,1749180638821,-500.0,0.00028871,2]
[364650841,1749180638831,-500.0,0.00028871,2]
[364650843,1749180638840,-500.0,0.00028871,2]
[364650845,1749180638850,-500.0,0.00028871,2]
[364650847,1749180638859,-500.0,0.00028871,2]
[364650849,1749180638869,-500.0,0.00028871,2]
[364650851,1749180638878,-500.0,0.00028871,2]
[364650853,1749180638887,-500.0,0.00028871,2]
[364650855,1749180638897,-500.0,0.00028871,2]
[364650857,1749180638906,-500.0,0.00028871,2]
[364650859,1749180638917,-500.0,0.00028871,2]
[364650861,1749180638930,-500.0,0.00028871,2]
[364650863,1749180638939,-500.0,0.00028871,2]
[364650865,1749180638948,-151.0,0.00028871,2]
[364650867,1749180638957,-150.0,0.00028887,2]
[364650869,1749180638968,-150.0,0.00028887,2]
[364650871,1749180638978,-6296.89467371,0.00028888,2]
[364650873,1749180638987,-2815.58284374,0.000289,2]
[364650875,1749180638998,-150.0,0.00028914,2]
[364650877,1749180639008,-151.0,0.00028926,2]
[364650879,1749180639018,-202.37281181,0.00028942,2]
[364650881,1749180639029,-2919.75940895,0.00028955,2]
[364650883,1749180639038,-600.0,0.00028956,3]
[364650885,1749180639048,-151.0,0.00028981,2]
[364650887,1749180639058,-160.54,0.00029,2]
[364650889,1749180639068,-2394.23598369,0.0002901,2]
[364650891,1749180639077,-224.02509011,0.00029036,2]
[364650893,1749180639088,-276.6959801,0.00029072,20]
[364650895,1749180639098,-2149.88852032,0.00029126,2]
[364650897,1749180639107,-600.0,0.00029136,3]
[364650899,1749180639117,-1273.84045988,0.00029204,2]
[364650901,1749180639128,-169.7,0.00029304,2]
[364650903,1749180639138,-152.0,0.0002932,4]
[364650905,1749180639147,-1273.84045982,0.00029354,2]
[364650907,1749180639157,-166.74,0.00029389,2]
[364650909,1749180639167,-594.646668,0.00029418,6]
[364650911,1749180639177,-1273.84045982,0.00029505,2]
[364650913,1749180639187,-276.6959801,0.0002959,21]
[364650915,1749180639196,-1273.84045982,0.00029655,2]
[364650917,1749180639206,-215.0738,0.00029719,2]
[364650919,1749180639216,-1273.84045982,0.00029805,2]
[364650921,1749180639225,-301.76,0.00029882,2]
[364650923,1749180639235,-926.72,0.000299,2]
[364650925,1749180639245,-1273.84045982,0.00029956,2]
[364650927,1749180639255,-1063.7997,0.0002996,2]
[364650929,1749180639264,-23741.97756962,0.0002999,2]
[364650967,1749180639570,-18838.37630111,0.0002999,2]
[364650979,1749180639683,-735.61591342,0.0002999,2]
[364650996,1749180639847,-87712.67408485,0.0002999,2]
[364650998,1749180639858,-250000.0,0.0003,10]
[364651000,1749180639868,-926.72,0.0003,2]
[364651002,1749180639881,-3640.36196688,0.0003,7]
[364651004,1749180639895,-151.30780356,0.00030064,2]
[364651006,1749180639906,-465.6038613,0.00030064,2]
[364651008,1749180639918,-150.0,0.00030084,2]
[364651010,1749180639933,-200.0,0.00030085,2]
[364651011,1749180639943,-1273.84045982,0.00030106,2]
[364651013,1749180639954,-276.6959801,0.00030107,22]
[364651015,1749180639964,-13102.8643869,0.00030134,2]
[364651017,1749180639976,-356.59531763,0.00030143,2]
[364651018,1749180639986,-156.84899642,0.00030143,2]
[364651020,1749180639997,-10208.6518791,0.00030143,2]
[364651022,1749180640007,-124530.75178877,0.00030144,2]
[364651034,1749180640143,-408.59702814,0.00030144,2]
[364651036,1749180640154,-4025.85364143,0.00030144,2]
[364651090,1749180642562,-41372.03457166,0.00030144,2]
[364651091,1749180642572,-163338.430065,0.00030144,2]
[364651092,1749180642581,-500.0,0.00030153,7]
[364651093,1749180642590,-29465.98876095,0.00030154,2]
[364651114,1749180645946,-257.0,0.00030143,2]
[364651116,1749180645956,-2302.30034864,0.00030154,2]
[364651123,1749180662860,159.69660579,0.00035527,120]
[364651124,1749180735620,1000.0,0.00035616,120]
[364651125,1749180748844,1000.0,0.00035616,120]
[364651126,1749180761034,1000.0,0.00035616,120]
[364651127,1749180791166,1000.0,0.00035616,120]
[364651129,1749180834049,2000.0,0.00035616,120]
[364651130,1749180847414,1000.0,0.00035616,120]
[364651131,1749180851916,492.0,0.0003,120]
[364651132,1749180896192,1000.0,0.00035616,120]
[364651133,1749181070683,20000.0,0.000356,120]
[364651134,1749181108026,10000.0,0.000356,120]
[364651135,1749181146314,346.11,0.00019103,2]
[364651137,1749181200907,250.0,0.00019,2]
[364651138,1749181401668,10000.0,0.000356,120]
[364651143,1749181595528,89.710001,0.00013699,2]
[364651144,1749181595558,78.449999,0.00013699,2]
[364651152,1749181796035,506.81,0.00024264,2]
[364651155,1749181831765,-744.76,0.00027187,2]
[364651156,1749181831775,-304.75,0.00028187,2]
[364651157,1749181831784,-301.8,0.00028187,2]
[364651158,1749181831794,-304.2,0.00028187,2]
[364651159,1749181831804,-305.74,0.00028187,2]
[364651160,1749181831813,-206.0,0.00028741,2]
[364651161,1749181831823,-204.51442016,0.000289,20]
[364651162,1749181831832,-17533.77,0.00028984,2]
[364651163,1749181831841,-893.07,0.00028991,30]
[364651164,1749181831850,-355.4,0.00029015,2]
[364651165,1749181831859,-1000.0,0.00029097,2]
[364651166,1749181831868,-150.0,0.00029121,7]
[364651167,1749181831877,-207.4,0.00029251,2]
[364651168,1749181831891,-500.0,0.00029251,2]
[364651169,1749181831901,-500.0,0.00029251,2]
[364651170,1749181831910,-500.0,0.00029251,2]
[364651171,1749181831919,-500.0,0.00029251,2]
[364651172,1749181831928,-500.0,0.00029251,2]
[364651173,1749181831937,-634.90288685,0.00029251,2]
[364651174,1749181831947,-124.62109814,0.00029251,2]
[364651175,1749181831970,-26.37890186,0.00029251,2]
[364651176,1749181831979,-160.55,0.00029268,2]
[364651177,1749181831989,-204.51442007,0.00029355,20]
[364651178,1749181831998,-210.63922047,0.00029418,6]
[364651179,1749181832009,-265.07811353,0.00029418,6]
[364651180,1749181832019,-744.76,0.00029451,2]
[364651181,1749181832028,-197.87754607,0.00029753,30]
[364651182,1749181832038,-204.51442007,0.00029809,21]
[364651183,1749181832047,-886.49974,0.0002985,2]
[364651184,1749181832058,-150.0,0.00029927,2]
[364651185,1749181832067,-260.33219343,0.00029927,2]
[364651186,1749181832077,-500.0,0.00029999,2]
[364651187,1749181832087,-613.10876406,0.00029999,2]
[364651189,1749181832096,-239.97039032,0.00029999,2]
[364651190,1749181832106,-500.0,0.00029999,2]
[364651192,1749181832115,-165.47247815,0.00029999,2]
[364651194,1749181832125,-2081.66135437,0.0003,10]
[364651632,1749181839945,-4063.73420782,0.0003,10]
[364651633,1749181839957,-359.53259997,0.0003,10]
[364651634,1749181840219,-101999.81148944,0.0003,10]
[364651635,1749181840230,-500.0,0.0003,15]
[364651636,1749181840240,-500.0,0.0003,15]
[364651637,1749181840250,-500.0,0.0003,15]
[364651638,1749181840260,-2046.13640798,0.0003,4]
[364651639,1749181840269,-500.0,0.0003,10]
[364651641,1749181840279,-500.0,0.0003,10]
[364651643,1749181840288,-150.0,0.0003,10]
[364651645,1749181840298,-150.0,0.0003,10]
[364651647,1749181840307,-155.32431393,0.0003,10]
[364651648,1749181840317,-150.0,0.0003,10]
[364651649,1749181840327,-500.0,0.0003,10]
[364651650,1749181840336,-203.7544645,0.0003,10]
[364651651,1749181840346,-151.76992592,0.0003,10]
[364651652,1749181840356,-150.0,0.0003,10]
[364651653,1749181840365,-202.68423922,0.0003,10]
[364651654,1749181840375,-166.83162424,0.0003,10]
[364651655,1749181840384,-150.0,0.0003,10]
[364651656,1749181840396,-500.0,0.0003,10]
[364651657,1749181840410,-283.95406199,0.0003,7]
[364651658,1749181840422,-500.0,0.0003,2]
[364651659,1749181840432,-500.0,0.0003,10]
[364651660,1749181840443,-150.0,0.0003,10]
[364651661,1749181840453,-500.0,0.0003,2]
[364651662,1749181840463,-500.0,0.0003,10]
[364651663,1749181840472,-150.0,0.0003,2]
[364651664,1749181840485,-2483.0,0.0003,10]
[364651665,1749181840495,-1850.0,0.0003,10]
[364651666,1749181840505,-500.0,0.0003,10]
[364651667,1749181840514,-150.0,0.0003,10]
[364651668,1749181840524,-150.0,0.0003,10]
[364651669,1749181840534,-500.0,0.0003,10]
[364651670,1749181840544,-500.0,0.0003,10]
[364651671,1749181840553,-500.0,0.0003,10]
[364651672,1749181840563,-150.0,0.0003,2]
[364651673,1749181840573,-500.0,0.0003,10]
[364651674,1749181840584,-150.0,0.0003,2]
[364651675,1749181840594,-610.0,0.0003,10]
[364651676,1749181840604,-564.42,0.00030017,3]
[364651677,1749181840615,-500.0,0.00030027,10]
[364651678,1749181840626,-500.0,0.00030027,10]
[364651679,1749181840637,-257.82896973,0.00030027,10]
[364651680,1749181840646,-200.0,0.00030027,10]
[364651681,1749181840655,-500.0,0.00030027,10]
[364651682,1749181840666,-219.45071894,0.00030027,10]
[364651683,1749181840677,-150.0,0.00030027,10]
[364651684,1749181840686,-500.0,0.00030027,10]
[364651685,1749181840696,-500.0,0.00030027,2]
[364651686,1749181840705,-500.0,0.00030027,10]
[364651687,1749181840714,-150.0,0.00030027,10]
[364651688,1749181840724,-500.0,0.00030027,2]
[364651689,1749181840734,-500.0,0.00030027,10]
[364651690,1749181840744,-2483.0,0.00030027,10]
[364651691,1749181840755,-1850.0,0.00030027,10]
[364651692,1749181840767,-500.0,0.00030027,10]
[364651693,1749181840777,-150.0,0.00030027,10]
[364651694,1749181840787,-150.0,0.00030027,10]
[364651695,1749181840797,-500.0,0.00030027,10]
[364651696,1749181840809,-500.0,0.00030027,10]
[364651697,1749181840818,-500.0,0.00030027,10]
[364651698,1749181840828,-500.0,0.00030027,10]
[364651699,1749181840839,-610.0,0.00030027,10]
[364651700,1749181840849,-1009.49,0.0003003,2]
[364651701,1749181840859,-228.65206478,0.00030044,2]
[364651702,1749181840870,-500.0,0.00030053,2]
[364651703,1749181840881,-500.0,0.00030053,2]
[364651704,1749181840891,-150.0,0.00030053,2]
[364651705,1749181840901,-500.0,0.00030053,2]
[364651706,1749181840910,-500.0,0.00030053,2]
[364651707,1749181840919,-503.0,0.00030053,2]
[364651708,1749181840928,-500.0,0.00030053,2]
[364651709,1749181840937,-500.0,0.00030053,2]
[364651710,1749181840946,-150.0,0.00030053,2]
[364651711,1749181840955,-500.0,0.00030053,2]
[364651712,1749181840964,-500.0,0.00030053,2]
[364651713,1749181840973,-500.0,0.00030053,2]
[364651714,1749181840982,-500.0,0.00030053,2]
[364651715,1749181840991,-500.0,0.00030053,2]
[364651716,1749181841000,-500.0,0.00030055,10]
[364651717,1749181841010,-500.0,0.00030055,10]
[364651718,1749181841019,-396.43125565,0.00030055,10]
[364651719,1749181841028,-150.0,0.00030055,10]
[364651720,1749181841037,-164.89034803,0.00030055,10]
[364651721,1749181841047,-500.0,0.00030055,2]
[364651722,1749181841056,-500.0,0.00030055,10]
[364651723,1749181841065,-150.0,0.00030055,10]
[364651724,1749181841074,-500.0,0.00030055,2]
[364651725,1749181841083,-500.0,0.00030055,10]
[364651726,1749181841092,-2483.0,0.00030055,10]
[364651727,1749181841102,-1850.0,0.00030055,10]
[364651728,1749181841111,-153.6039194,0.00030055,10]
[364651729,1749181841120,-150.0,0.00030055,10]
[364651730,1749181841129,-150.0,0.00030055,10]
[364651731,1749181841138,-226.51934188,0.00030055,10]
[364651732,1749181841149,-500.0,0.00030055,10]